[Event "Late-Titled-Tuesday-Blitz-April-30-2024"]
[Site "Chess.com"]
[Date "2024.04.30"]
[Round "8"]
[White "GolfBeforeChess"]
[Black "dosto07"]
[Result "1-0"]
[WhiteElo "2347"]
[BlackElo "2494"]
[TimeControl "180+1"]
[EndTime "15:27:04 PDT"]
[Termination "GolfBeforeChess won by resignation"]

1. Nf3 {[%clk 0:03:00.9]} 1... d5 {[%clk 0:02:59.7]} 2. b3 {[%clk 0:03:00.8]}
2... Nf6 {[%clk 0:02:59]} 3. Bb2 {[%clk 0:03:00.9]} 3... Bg4 {[%clk 0:02:59.6]}
4. g3 {[%clk 0:03:00.1]} 4... Nbd7 {[%clk 0:02:56.7]} 5. Bg2 {[%clk 0:02:58.7]}
5... e6 {[%clk 0:02:57]} 6. d3 {[%clk 0:02:56.3]} 6... Bd6 {[%clk 0:02:57]} 7.
Nbd2 {[%clk 0:02:56.4]} 7... O-O {[%clk 0:02:56.4]} 8. O-O {[%clk 0:02:56.4]}
8... a5 {[%clk 0:02:56.5]} 9. a3 {[%clk 0:02:55.7]} 9... c6 {[%clk 0:02:55.5]}
10. c4 {[%clk 0:02:56]} 10... Qe7 {[%clk 0:02:52.8]} 11. Qc2 {[%clk 0:02:53.6]}
11... Rfe8 {[%clk 0:02:50.8]} 12. Rfe1 {[%clk 0:02:53]} 12... e5 {[%clk
0:02:48.1]} 13. cxd5 {[%clk 0:02:51.1]} 13... cxd5 {[%clk 0:02:48.6]} 14. e4
{[%clk 0:02:51]} 14... Rac8 {[%clk 0:02:46.6]} 15. Qb1 {[%clk 0:02:49.2]} 15...
dxe4 {[%clk 0:02:33.7]} 16. dxe4 {[%clk 0:02:45.8]} 16... Nc5 {[%clk 0:02:21.7]}
17. b4 {[%clk 0:02:30.7]} 17... Na4 {[%clk 0:02:18.5]} 18. bxa5 {[%clk
0:02:19.8]} 18... Rc5 {[%clk 0:02:06.9]} 19. Rc1 {[%clk 0:02:19.6]} 19... Rxa5
{[%clk 0:02:00.8]} 20. Nc4 {[%clk 0:02:17]} 20... Ra6 {[%clk 0:01:59.2]} 21.
Nxd6 {[%clk 0:02:14.1]} 21... Qxd6 {[%clk 0:01:58.1]} 22. Bxe5 {[%clk
0:02:03.7]} 22... Rxe5 {[%clk 0:01:57]} 23. Nxe5 {[%clk 0:02:02.3]} 23... Qxe5
{[%clk 0:01:57.5]} 24. Qxb7 {[%clk 0:02:02.1]} 24... Re6 {[%clk 0:01:51.9]} 25.
Qa8+ {[%clk 0:01:54.4]} 25... Re8 {[%clk 0:01:51.9]} 26. Qxa4 {[%clk 0:01:54.6]}
26... h5 {[%clk 0:01:50.4]} 27. Qc6 {[%clk 0:01:44.4]} 27... h4 {[%clk 0:01:46]}
28. a4 {[%clk 0:01:43]} 28... hxg3 {[%clk 0:01:37.1]} 29. hxg3 {[%clk
0:01:42.9]} 29... Bd7 {[%clk 0:01:37.8]} 30. Qc7 {[%clk 0:01:34.4]} 30... Qh5
{[%clk 0:01:36.2]} 31. a5 {[%clk 0:01:31.1]} 31... Rc8 {[%clk 0:01:20.3]} 32.
Qd6 {[%clk 0:01:14.3]} 32... Rxc1+ {[%clk 0:01:11]} 33. Rxc1 {[%clk 0:01:13.3]}
33... Bb5 {[%clk 0:01:11.6]} 34. e5 {[%clk 0:00:56.8]} 34... Ng4 {[%clk
0:00:59.6]} 35. Qb8+ {[%clk 0:00:56.6]} 35... Kh7 {[%clk 0:00:59.8]} 36. Qxb5
{[%clk 0:00:56.4]} 36... Qh2+ {[%clk 0:00:59.4]} 37. Kf1 {[%clk 0:00:56.7]}
37... Qh6 {[%clk 0:00:56.9]} 38. Qd3+ {[%clk 0:00:55.1]} 38... g6 {[%clk
0:00:56.5]} 39. Rc7 {[%clk 0:00:53.2]} 39... Kg7 {[%clk 0:00:53.6]} 40. e6
{[%clk 0:00:52.4]} 40... Qg5 {[%clk 0:00:50.1]} 41. e7 {[%clk 0:00:46]} 41...
Qe5 {[%clk 0:00:48.1]} 42. Qc3 {[%clk 0:00:44.8]} 42... Qxc3 {[%clk 0:00:43.4]}
43. Rxc3 {[%clk 0:00:44.3]} 43... Nf6 {[%clk 0:00:44.3]} 44. Rc8 {[%clk
0:00:43.5]} 1-0

[Event "Late-Titled-Tuesday-Blitz-April-30-2024"]
[Site "Chess.com"]
[Date "2024.04.30"]
[Round "8"]
[White "kleinebeer98"]
[Black "Njal28"]
[Result "0-1"]
[WhiteElo "2919"]
[BlackElo "3090"]
[TimeControl "180+1"]
[EndTime "15:27:05 PDT"]
[Termination "Njal28 won by resignation"]

1. e4 {[%clk 0:03:00.9]} 1... Nc6 {[%clk 0:02:58]} 2. Nf3 {[%clk 0:03:00.9]}
2... d6 {[%clk 0:02:56.7]} 3. d4 {[%clk 0:02:59.7]} 3... Nf6 {[%clk 0:02:57.3]}
4. Nc3 {[%clk 0:03:00]} 4... g6 {[%clk 0:02:57.4]} 5. Bg5 {[%clk 0:02:58.9]}
5... Bg7 {[%clk 0:02:56.9]} 6. Qd2 {[%clk 0:02:59.2]} 6... h6 {[%clk 0:02:56.7]}
7. Bf4 {[%clk 0:02:59.4]} 7... g5 {[%clk 0:02:53.9]} 8. Be3 {[%clk 0:02:59]}
8... Ng4 {[%clk 0:02:53.7]} 9. O-O-O {[%clk 0:02:59.5]} 9... O-O {[%clk
0:02:44.4]} 10. Kb1 {[%clk 0:02:59.5]} 10... a6 {[%clk 0:02:38.4]} 11. h4 {[%clk
0:02:53.6]} 11... Nxe3 {[%clk 0:02:38.3]} 12. fxe3 {[%clk 0:02:54.5]} 12... g4
{[%clk 0:02:37.9]} 13. Nh2 {[%clk 0:02:54.8]} 13... h5 {[%clk 0:02:32.4]} 14.
Bd3 {[%clk 0:02:48.9]} 14... e5 {[%clk 0:02:29.2]} 15. d5 {[%clk 0:02:43.3]}
15... Ne7 {[%clk 0:02:29.3]} 16. Nf1 {[%clk 0:02:39.4]} 16... f5 {[%clk
0:02:29.1]} 17. Ng3 {[%clk 0:02:40.1]} 17... f4 {[%clk 0:02:13.9]} 18. Nxh5
{[%clk 0:02:40.1]} 18... Bh6 {[%clk 0:02:14.5]} 19. exf4 {[%clk 0:02:38.5]}
19... Qe8 {[%clk 0:02:14.7]} 20. Ng3 {[%clk 0:02:30.4]} 20... exf4 {[%clk
0:02:14.3]} 21. Nf5 {[%clk 0:02:27.5]} 21... Nxf5 {[%clk 0:02:04.7]} 22. exf5
{[%clk 0:02:28.4]} 22... Bxf5 {[%clk 0:02:05]} 23. Rde1 {[%clk 0:02:26.8]} 23...
Qh5 {[%clk 0:02:02]} 24. Bxf5 {[%clk 0:02:19.4]} 24... Rxf5 {[%clk 0:02:02.5]}
25. Re6 {[%clk 0:02:20.1]} 25... Raf8 {[%clk 0:01:55.1]} 26. Rhe1 {[%clk
0:02:07.3]} 26... Bg7 {[%clk 0:01:47.6]} 27. Re7 {[%clk 0:02:00]} 27... R5f7
{[%clk 0:01:24]} 28. R7e4 {[%clk 0:01:49.4]} 28... Qxh4 {[%clk 0:01:19.3]} 29.
a3 {[%clk 0:01:47.9]} 29... Qh2 {[%clk 0:01:13.3]} 30. Qd1 {[%clk 0:01:33.4]}
30... f3 {[%clk 0:01:09.1]} 31. gxf3 {[%clk 0:01:28.8]} 31... gxf3 {[%clk
0:01:10]} 32. Rh1 {[%clk 0:01:28.7]} 32... Qg2 {[%clk 0:00:57.6]} 33. Rg1 {[%clk
0:01:24.5]} 33... Qh3 {[%clk 0:00:54]} 34. Rh1 {[%clk 0:01:16.1]} 34... Qf5
{[%clk 0:00:52.4]} 35. Reh4 {[%clk 0:01:09.1]} 35... f2 {[%clk 0:00:50.6]} 36.
Qf1 {[%clk 0:01:09.7]} 36... Re7 {[%clk 0:00:43.8]} 37. Ka2 {[%clk 0:00:34.6]}
37... Re1 {[%clk 0:00:41]} 38. Qg2 {[%clk 0:00:35.3]} 38... Rxh1 {[%clk
0:00:40.3]} 0-1

[Event "Late-Titled-Tuesday-Blitz-April-30-2024"]
[Site "Chess.com"]
[Date "2024.04.30"]
[Round "8"]
[White "katharinareinecke"]
[Black "teresin05"]
[Result "0-1"]
[WhiteElo "2036"]
[BlackElo "2252"]
[TimeControl "180+1"]
[EndTime "15:27:05 PDT"]
[Termination "teresin05 won by resignation"]

1. d4 {[%clk 0:03:00.9]} 1... d5 {[%clk 0:02:59.1]} 2. c4 {[%clk 0:02:59.6]}
2... c6 {[%clk 0:02:58.6]} 3. Nf3 {[%clk 0:02:59.6]} 3... Nf6 {[%clk 0:02:58.7]}
4. g3 {[%clk 0:02:59.8]} 4... Bf5 {[%clk 0:02:57.4]} 5. Bg2 {[%clk 0:03:00.1]}
5... h6 {[%clk 0:02:57.9]} 6. O-O {[%clk 0:03:00.4]} 6... e6 {[%clk 0:02:57.7]}
7. b3 {[%clk 0:03:00.7]} 7... Be7 {[%clk 0:02:57.8]} 8. Bb2 {[%clk 0:02:59.6]}
8... O-O {[%clk 0:02:58.4]} 9. Nbd2 {[%clk 0:02:56.9]} 9... a5 {[%clk
0:02:57.6]} 10. a3 {[%clk 0:02:52.1]} 10... Nbd7 {[%clk 0:02:54.4]} 11. e3
{[%clk 0:02:50.3]} 11... Ne4 {[%clk 0:02:52.5]} 12. Qe2 {[%clk 0:02:45.8]} 12...
Ndf6 {[%clk 0:02:48.8]} 13. Nh4 {[%clk 0:02:44.4]} 13... Nxd2 {[%clk 0:02:45.6]}
14. Qxd2 {[%clk 0:02:42.4]} 14... Be4 {[%clk 0:02:44.4]} 15. f3 {[%clk
0:02:37.7]} 15... Bh7 {[%clk 0:02:40.1]} 16. Bh1 {[%clk 0:02:30.2]} 16... Nd7
{[%clk 0:02:33.1]} 17. Ng2 {[%clk 0:02:29.1]} 17... a4 {[%clk 0:02:30.4]} 18. b4
{[%clk 0:02:21.5]} 18... dxc4 {[%clk 0:02:29.7]} 19. Qc3 {[%clk 0:02:21.6]}
19... b5 {[%clk 0:02:26.7]} 20. e4 {[%clk 0:02:20.9]} 20... Qb6 {[%clk
0:02:19.6]} 21. Ne3 {[%clk 0:02:11.4]} 21... Rad8 {[%clk 0:02:08]} 22. f4 {[%clk
0:02:10.1]} 22... Nf6 {[%clk 0:02:00.2]} 23. f5 {[%clk 0:02:06.7]} 23... e5
{[%clk 0:01:44.9]} 24. dxe5 {[%clk 0:01:57.8]} 24... Rd3 {[%clk 0:01:39.1]} 25.
Qc1 {[%clk 0:01:04]} 25... Ng4 {[%clk 0:01:26.4]} 26. Rf3 {[%clk 0:00:54.3]}
26... Nxe3 {[%clk 0:01:22.2]} 27. Rxe3 {[%clk 0:00:42.5]} 27... Qxe3+ {[%clk
0:01:16.1]} 28. Qxe3 {[%clk 0:00:21.6]} 28... Rxe3 {[%clk 0:01:17]} 29. Rd1
{[%clk 0:00:20.3]} 29... Rd3 {[%clk 0:01:09.7]} 30. Re1 {[%clk 0:00:19.3]} 30...
c3 {[%clk 0:01:08.3]} 31. Bc1 {[%clk 0:00:19]} 31... Rfd8 {[%clk 0:01:07.9]} 32.
Bf3 {[%clk 0:00:17.9]} 32... Bg5 {[%clk 0:01:04.5]} 33. Bxg5 {[%clk 0:00:14]}
33... hxg5 {[%clk 0:01:04.8]} 34. Be2 {[%clk 0:00:14.3]} 34... Rd2 {[%clk
0:01:04.7]} 35. Bg4 {[%clk 0:00:12.5]} 35... c2 {[%clk 0:01:04.6]} 36. Rc1
{[%clk 0:00:12.7]} 36... Rd1+ {[%clk 0:01:03.6]} 37. Bxd1 {[%clk 0:00:12.7]}
37... Rxd1+ {[%clk 0:01:03.5]} 0-1

[Event "Late-Titled-Tuesday-Blitz-April-30-2024"]
[Site "Chess.com"]
[Date "2024.04.30"]
[Round "8"]
[White "scandalgod"]
[Black "Anton_Demchenko"]
[Result "1-0"]
[WhiteElo "2513"]
[BlackElo "2875"]
[TimeControl "180+1"]
[EndTime "15:27:06 PDT"]
[Termination "scandalgod won on time"]

1. d4 {[%clk 0:02:56.2]} 1... Nf6 {[%clk 0:02:59.7]} 2. c4 {[%clk 0:02:55.8]}
2... d6 {[%clk 0:03:00.1]} 3. Nc3 {[%clk 0:02:55.1]} 3... e5 {[%clk 0:02:59.5]}
4. Nf3 {[%clk 0:02:54.4]} 4... Nc6 {[%clk 0:02:58.7]} 5. e4 {[%clk 0:02:52.1]}
5... Bg4 {[%clk 0:02:58.1]} 6. d5 {[%clk 0:02:50.5]} 6... Nd4 {[%clk 0:02:58.3]}
7. Be2 {[%clk 0:02:50.2]} 7... Nxe2 {[%clk 0:02:58.9]} 8. Qxe2 {[%clk
0:02:49.7]} 8... Be7 {[%clk 0:02:59.8]} 9. h3 {[%clk 0:02:48]} 9... Bd7 {[%clk
0:02:58.1]} 10. Be3 {[%clk 0:02:45.7]} 10... h6 {[%clk 0:02:56.8]} 11. O-O
{[%clk 0:02:41]} 11... g5 {[%clk 0:02:56.1]} 12. c5 {[%clk 0:02:24.2]} 12... g4
{[%clk 0:02:55.7]} 13. hxg4 {[%clk 0:02:06.6]} 13... Nxg4 {[%clk 0:02:56.2]} 14.
Rfc1 {[%clk 0:02:03.4]} 14... Rg8 {[%clk 0:02:53]} 15. cxd6 {[%clk 0:02:00.8]}
15... Bxd6 {[%clk 0:02:47.5]} 16. Nb5 {[%clk 0:01:58.4]} 16... a6 {[%clk
0:02:39.8]} 17. Nxd6+ {[%clk 0:01:57.4]} 17... cxd6 {[%clk 0:02:40.7]} 18. Bd2
{[%clk 0:01:57.9]} 18... Qf6 {[%clk 0:02:31.7]} 19. Rc7 {[%clk 0:01:51.6]} 19...
Bb5 {[%clk 0:01:03.9]} 20. Qe1 {[%clk 0:01:49.3]} 20... h5 {[%clk 0:01:04.5]}
21. Rac1 {[%clk 0:01:43]} 21... Rd8 {[%clk 0:01:03]} 22. Rxb7 {[%clk 0:01:37]}
22... h4 {[%clk 0:01:01.5]} 23. Rcc7 {[%clk 0:01:31.5]} 23... Bd7 {[%clk
0:00:54]} 24. Qc1 {[%clk 0:01:07]} 24... Ne3 {[%clk 0:00:54]} 25. Bxe3 {[%clk
0:00:52.8]} 25... Qxf3 {[%clk 0:00:34.6]} 26. Bg5 {[%clk 0:00:49.2]} 1-0

[Event "Late-Titled-Tuesday-Blitz-April-30-2024"]
[Site "Chess.com"]
[Date "2024.04.30"]
[Round "8"]
[White "Synctel"]
[Black "PawnEatingZombie"]
[Result "0-1"]
[WhiteElo "2032"]
[BlackElo "2217"]
[TimeControl "180+1"]
[EndTime "15:27:06 PDT"]
[Termination "PawnEatingZombie won on time"]

1. d4 {[%clk 0:03:00.9]} 1... Nf6 {[%clk 0:02:59.2]} 2. Nf3 {[%clk 0:03:01]}
2... g6 {[%clk 0:02:58.7]} 3. Bf4 {[%clk 0:02:59.2]} 3... Bg7 {[%clk 0:02:58.5]}
4. e3 {[%clk 0:02:59.1]} 4... d6 {[%clk 0:02:59]} 5. h3 {[%clk 0:02:58.9]} 5...
O-O {[%clk 0:02:59.1]} 6. Be2 {[%clk 0:02:59.2]} 6... c5 {[%clk 0:02:59.3]} 7.
c3 {[%clk 0:02:59]} 7... Qb6 {[%clk 0:02:58]} 8. Qb3 {[%clk 0:02:58.8]} 8... Be6
{[%clk 0:02:58.4]} 9. Qxb6 {[%clk 0:02:53.2]} 9... axb6 {[%clk 0:02:59.3]} 10.
a3 {[%clk 0:02:46.3]} 10... Bd5 {[%clk 0:02:58.9]} 11. Nbd2 {[%clk 0:02:45.4]}
11... Bc6 {[%clk 0:02:54.4]} 12. O-O {[%clk 0:02:38.7]} 12... b5 {[%clk
0:02:54.5]} 13. dxc5 {[%clk 0:02:26.1]} 13... dxc5 {[%clk 0:02:52.7]} 14. Ne5
{[%clk 0:02:24.8]} 14... c4 {[%clk 0:02:18]} 15. Ndf3 {[%clk 0:02:00.9]} 15...
Be8 {[%clk 0:02:08.3]} 16. Rfd1 {[%clk 0:01:34.5]} 16... Nc6 {[%clk 0:02:08.4]}
17. Nxc6 {[%clk 0:01:11]} 17... Bxc6 {[%clk 0:02:04.2]} 18. Be5 {[%clk
0:01:00.8]} 18... Ne4 {[%clk 0:01:58.3]} 19. Bxg7 {[%clk 0:00:58.1]} 19... Kxg7
{[%clk 0:01:59.2]} 20. Nd4 {[%clk 0:00:56.7]} 20... Nc5 {[%clk 0:01:46.9]} 21.
Nxc6 {[%clk 0:00:52.7]} 21... bxc6 {[%clk 0:01:47.8]} 22. Bf3 {[%clk 0:00:51.5]}
22... Rfc8 {[%clk 0:01:40.5]} 23. Be2 {[%clk 0:00:21.4]} 23... Rd8 {[%clk
0:01:34.2]} 24. Kf1 {[%clk 0:00:18.4]} 24... e5 {[%clk 0:01:32.3]} 25. Ke1
{[%clk 0:00:11.5]} 25... e4 {[%clk 0:01:26.5]} 26. Rd4 {[%clk 0:00:11.6]} 26...
Rxd4 {[%clk 0:01:25.7]} 27. exd4 {[%clk 0:00:10]} 27... Nd3+ {[%clk 0:01:25.9]}
28. Bxd3 {[%clk 0:00:10.2]} 28... exd3 {[%clk 0:01:25.1]} 29. Kd2 {[%clk
0:00:09.5]} 29... Re8 {[%clk 0:01:25]} 30. Re1 {[%clk 0:00:09.4]} 30... Rxe1
{[%clk 0:01:16.8]} 31. Kxe1 {[%clk 0:00:10.3]} 31... Kf6 {[%clk 0:01:17]} 32.
Kd2 {[%clk 0:00:10.7]} 32... Ke6 {[%clk 0:01:17.3]} 33. b3 {[%clk 0:00:11.3]}
33... Kd5 {[%clk 0:01:15.9]} 34. a4 {[%clk 0:00:06.3]} 34... bxa4 {[%clk
0:01:13.5]} 35. bxa4 {[%clk 0:00:04.7]} 35... c5 {[%clk 0:01:08]} 36. dxc5
{[%clk 0:00:03.2]} 36... Kxc5 {[%clk 0:01:08]} 37. f3 {[%clk 0:00:02.3]} 37...
Kb6 {[%clk 0:01:08.1]} 0-1

[Event "Late-Titled-Tuesday-Blitz-April-30-2024"]
[Site "Chess.com"]
[Date "2024.04.30"]
[Round "8"]
[White "xberli"]
[Black "disciplinedbrat"]
[Result "1-0"]
[WhiteElo "2633"]
[BlackElo "2444"]
[TimeControl "180+1"]
[EndTime "15:27:09 PDT"]
[Termination "xberli won by resignation"]

1. d4 {[%clk 0:02:55.5]} 1... d6 {[%clk 0:02:58.2]} 2. Nf3 {[%clk 0:02:49.1]}
2... g6 {[%clk 0:02:56.5]} 3. g3 {[%clk 0:02:49.2]} 3... Bg7 {[%clk 0:02:52.5]}
4. Bg2 {[%clk 0:02:49.4]} 4... Nf6 {[%clk 0:02:51.7]} 5. O-O {[%clk 0:02:49.6]}
5... O-O {[%clk 0:02:52.1]} 6. c4 {[%clk 0:02:49.8]} 6... c5 {[%clk 0:02:47.2]}
7. d5 {[%clk 0:02:48.8]} 7... e6 {[%clk 0:02:36.8]} 8. a4 {[%clk 0:02:44.4]}
8... exd5 {[%clk 0:02:36.9]} 9. cxd5 {[%clk 0:02:45.3]} 9... Nbd7 {[%clk
0:02:34.6]} 10. Nfd2 {[%clk 0:02:44.1]} 10... Re8 {[%clk 0:02:34.9]} 11. Na3
{[%clk 0:02:44]} 11... Ne5 {[%clk 0:02:32.2]} 12. Ndc4 {[%clk 0:02:42.8]} 12...
a6 {[%clk 0:02:29.7]} 13. a5 {[%clk 0:02:40.5]} 13... Bd7 {[%clk 0:02:25.6]} 14.
Nxd6 {[%clk 0:02:33.9]} 14... Qxa5 {[%clk 0:02:17.9]} 15. Nxe8 {[%clk
0:02:27.8]} 15... Rxe8 {[%clk 0:02:16.4]} 16. Bf4 {[%clk 0:02:26.3]} 16... Qb4
{[%clk 0:02:08.3]} 17. Qc2 {[%clk 0:02:20.6]} 17... Neg4 {[%clk 0:01:52.7]} 18.
Bd2 {[%clk 0:02:11.9]} 18... Qb6 {[%clk 0:01:40.2]} 19. Nc4 {[%clk 0:02:11.7]}
19... Qd8 {[%clk 0:01:39.9]} 20. e4 {[%clk 0:02:04.5]} 20... Bb5 {[%clk
0:01:38.5]} 21. Rfe1 {[%clk 0:01:59.6]} 21... Nxf2 {[%clk 0:01:07.6]} 22. Ba5
{[%clk 0:01:48.7]} 22... Qb8 {[%clk 0:00:54.5]} 23. Qxf2 {[%clk 0:01:38.6]}
23... Bxc4 {[%clk 0:00:52.9]} 24. Qxc5 {[%clk 0:01:37.6]} 24... Bb5 {[%clk
0:00:49.5]} 25. Bc3 {[%clk 0:01:11.2]} 25... Rc8 {[%clk 0:00:42.6]} 26. Qd4
{[%clk 0:01:01.5]} 26... Nh5 {[%clk 0:00:39.9]} 27. e5 {[%clk 0:00:58.5]} 27...
Rc4 {[%clk 0:00:39.7]} 28. Qd2 {[%clk 0:00:52.3]} 28... Bd7 {[%clk 0:00:29.6]}
29. e6 {[%clk 0:00:44.7]} 29... Bxc3 {[%clk 0:00:28.7]} 30. bxc3 {[%clk
0:00:42.4]} 30... fxe6 {[%clk 0:00:28.8]} 31. dxe6 {[%clk 0:00:42.1]} 31... Bc6
{[%clk 0:00:24.6]} 32. Bxc6 {[%clk 0:00:41.5]} 32... Rxc6 {[%clk 0:00:24.6]} 33.
e7 {[%clk 0:00:41.1]} 33... Nf6 {[%clk 0:00:23.4]} 34. Qd8+ {[%clk 0:00:40.4]}
1-0

[Event "Late-Titled-Tuesday-Blitz-April-30-2024"]
[Site "Chess.com"]
[Date "2024.04.30"]
[Round "8"]
[White "Dhaydon19"]
[Black "Heliosis11"]
[Result "1-0"]
[WhiteElo "2621"]
[BlackElo "2418"]
[TimeControl "180+1"]
[EndTime "15:27:09 PDT"]
[Termination "Dhaydon19 won by resignation"]

1. e4 {[%clk 0:03:00.9]} 1... c5 {[%clk 0:02:59.5]} 2. Nc3 {[%clk 0:03:01.1]}
2... e6 {[%clk 0:02:59.4]} 3. g3 {[%clk 0:03:01.7]} 3... d5 {[%clk 0:02:58.3]}
4. exd5 {[%clk 0:03:00]} 4... exd5 {[%clk 0:02:59.2]} 5. Bg2 {[%clk 0:03:00.6]}
5... d4 {[%clk 0:02:59.6]} 6. Ne4 {[%clk 0:03:00.5]} 6... Nf6 {[%clk 0:02:58.4]}
7. Nxf6+ {[%clk 0:03:00.5]} 7... Qxf6 {[%clk 0:02:57.7]} 8. Ne2 {[%clk
0:03:00.1]} 8... Be7 {[%clk 0:02:56.5]} 9. O-O {[%clk 0:03:00.2]} 9... Nc6
{[%clk 0:02:56.9]} 10. Nf4 {[%clk 0:03:00.5]} 10... O-O {[%clk 0:02:49.9]} 11.
Nd5 {[%clk 0:03:00.4]} 11... Qd6 {[%clk 0:02:50.3]} 12. d3 {[%clk 0:03:00.5]}
12... Be6 {[%clk 0:02:49.3]} 13. Bf4 {[%clk 0:02:58.7]} 13... Qd7 {[%clk
0:02:49.8]} 14. Nxe7+ {[%clk 0:02:58.1]} 14... Nxe7 {[%clk 0:02:50.4]} 15. Re1
{[%clk 0:02:56]} 15... Nd5 {[%clk 0:02:50.7]} 16. Bd2 {[%clk 0:02:56.5]} 16...
Rfe8 {[%clk 0:02:49.3]} 17. a3 {[%clk 0:02:55.6]} 17... h6 {[%clk 0:02:48.5]}
18. Qf3 {[%clk 0:02:54.4]} 18... Rad8 {[%clk 0:02:47.7]} 19. Re5 {[%clk
0:02:51.4]} 19... Qe7 {[%clk 0:02:26.7]} 20. Rae1 {[%clk 0:02:44.8]} 20... Qf8
{[%clk 0:02:24]} 21. g4 {[%clk 0:02:28.9]} 21... b6 {[%clk 0:02:21.8]} 22. g5
{[%clk 0:02:27]} 22... hxg5 {[%clk 0:02:21.7]} 23. Bxg5 {[%clk 0:02:26.6]} 23...
Rd7 {[%clk 0:02:16.5]} 24. Qg3 {[%clk 0:02:25.4]} 24... Ne7 {[%clk 0:02:03.9]}
25. Bh6 {[%clk 0:02:16.9]} 25... Kh8 {[%clk 0:01:45.6]} 26. Bd2 {[%clk
0:01:56.5]} 26... Nf5 {[%clk 0:01:26.1]} 27. Qf4 {[%clk 0:01:47]} 27... g6
{[%clk 0:01:22.4]} 28. h4 {[%clk 0:01:41]} 28... Rde7 {[%clk 0:01:16.8]} 29. h5
{[%clk 0:01:38.2]} 29... Qg7 {[%clk 0:01:14.8]} 30. hxg6 {[%clk 0:01:35.6]}
30... Qxg6 {[%clk 0:01:15.7]} 31. Qh2+ {[%clk 0:01:34]} 31... Kg7 {[%clk
0:01:13.1]} 32. Kf1 {[%clk 0:01:24.7]} 32... Rh8 {[%clk 0:01:12.8]} 33. Qf4
{[%clk 0:01:24.1]} 33... Ree8 {[%clk 0:01:01.1]} 34. Be4 {[%clk 0:01:18.7]}
34... Rh5 {[%clk 0:01:00.9]} 35. Ke2 {[%clk 0:01:15.6]} 35... f6 {[%clk
0:00:23.5]} 36. Rxe6 {[%clk 0:01:13.7]} 36... Rxe6 {[%clk 0:00:23.6]} 37. Kd1
{[%clk 0:01:13.2]} 37... Rg5 {[%clk 0:00:13.6]} 38. Qc7+ {[%clk 0:01:06.8]}
38... Kh6 {[%clk 0:00:11.8]} 39. Rh1+ {[%clk 0:01:03.4]} 1-0

[Event "Late-Titled-Tuesday-Blitz-April-30-2024"]
[Site "Chess.com"]
[Date "2024.04.30"]
[Round "8"]
[White "vladgoncharov"]
[Black "CarlosjPineror"]
[Result "0-1"]
[WhiteElo "2605"]
[BlackElo "2714"]
[TimeControl "180+1"]
[EndTime "15:27:32 PDT"]
[Termination "CarlosjPineror won on time"]

1. d4 {[%clk 0:02:27.3]} 1... Nf6 {[%clk 0:02:59.2]} 2. c4 {[%clk 0:02:25.8]}
2... d6 {[%clk 0:02:59.7]} 3. Nf3 {[%clk 0:02:22.2]} 3... g6 {[%clk 0:02:59.6]}
4. Nc3 {[%clk 0:02:22.4]} 4... Bf5 {[%clk 0:03:00.1]} 5. g3 {[%clk 0:02:20.4]}
5... Ne4 {[%clk 0:02:57.8]} 6. Qb3 {[%clk 0:02:16.2]} 6... b6 {[%clk 0:02:57]}
7. Bg2 {[%clk 0:02:13.3]} 7... Nxc3 {[%clk 0:02:56.8]} 8. Qxc3 {[%clk
0:02:13.1]} 8... Be4 {[%clk 0:02:57.4]} 9. d5 {[%clk 0:02:11.9]} 9... Rg8 {[%clk
0:02:23.8]} 10. O-O {[%clk 0:02:09.3]} 10... Nd7 {[%clk 0:02:20.4]} 11. Be3
{[%clk 0:02:04.4]} 11... c5 {[%clk 0:02:17.4]} 12. dxc6 {[%clk 0:02:03.3]} 12...
Bxc6 {[%clk 0:02:16.9]} 13. Rad1 {[%clk 0:02:02.3]} 13... Qc7 {[%clk 0:02:14.3]}
14. b4 {[%clk 0:01:56.7]} 14... Bg7 {[%clk 0:02:09.3]} 15. Qb3 {[%clk
0:01:56.1]} 15... h6 {[%clk 0:02:06.4]} 16. Rc1 {[%clk 0:01:30.8]} 16... g5
{[%clk 0:02:02.7]} 17. c5 {[%clk 0:01:30.3]} 17... bxc5 {[%clk 0:01:59.2]} 18.
bxc5 {[%clk 0:01:29.9]} 18... d5 {[%clk 0:01:59.8]} 19. Nd4 {[%clk 0:01:26.6]}
19... Bxd4 {[%clk 0:01:59.3]} 20. Bxd4 {[%clk 0:01:26.3]} 20... e6 {[%clk
0:01:59.1]} 21. Rfe1 {[%clk 0:01:19.9]} 21... Kf8 {[%clk 0:01:56.2]} 22. e4
{[%clk 0:01:17.3]} 22... dxe4 {[%clk 0:01:54.4]} 23. Bxe4 {[%clk 0:01:17.1]}
23... Bxe4 {[%clk 0:01:55]} 24. Rxe4 {[%clk 0:01:17.4]} 24... Qc6 {[%clk
0:01:55.5]} 25. Ree1 {[%clk 0:01:12.2]} 25... Rg6 {[%clk 0:01:51.9]} 26. Rb1
{[%clk 0:00:58.2]} 26... Re8 {[%clk 0:01:48.1]} 27. Qb7 {[%clk 0:00:56.3]} 27...
e5 {[%clk 0:01:44.3]} 28. Be3 {[%clk 0:00:56.3]} 28... e4 {[%clk 0:01:42.2]} 29.
Red1 {[%clk 0:00:34.9]} 29... Ne5 {[%clk 0:01:36.1]} 30. Qxa7 {[%clk 0:00:30.8]}
30... Qc8 {[%clk 0:01:29.5]} 31. Kg2 {[%clk 0:00:22.8]} 31... Qf5 {[%clk
0:01:24.7]} 32. c6 {[%clk 0:00:19.7]} 32... Rxc6 {[%clk 0:01:19.1]} 33. Qd4
{[%clk 0:00:16.1]} 33... Kg8 {[%clk 0:01:15.3]} 34. Rb5 {[%clk 0:00:15.2]} 34...
Qf3+ {[%clk 0:01:10.3]} 35. Kg1 {[%clk 0:00:15.4]} 35... Qe2 {[%clk 0:00:46.4]}
36. Rf1 {[%clk 0:00:13.1]} 36... Nf3+ {[%clk 0:00:46.2]} 0-1